[Event "45th FIDE Olympiad 2024"]
[Site "Budapest"]
[Date "2024.09.15"]
[Round "5.26"]
[White "So, Wesley"]
[Black "Krysa, Leandro"]
[Result "1-0"]
[ECO "C90"]
[WhiteElo "2752"]
[BlackElo "2495"]
[Annotator "TA"]
[PlyCount "159"]
[EventDate "2024.09.05"]
[EventType "team-tourn"]
[EventCountry "HUN"]
[SourceTitle "playchess.com"]
[Source "ChessBase"]
[SourceQuality "1"]
[WhiteTeam "United States of America"]
[BlackTeam "Argentina"]
[BlackTeamCountry "ARG"]
[TimeControl "40/5400+30:1800+30"]

{[%evp 74,159,51,52,61,48,78,85,78,81,89,93,89,104,115,115,117,8,8,8,8,8,8,8,8,8,8,8,8,8,8,8,8,8,8,8,8,8,8,0,8,0,8,8,8,8,8,8,8,0,8,8,8,8,8,8,8,8,8,0,8,0,0,0,29958,29959,29963,29965,29966,29967,29967,29968,29969,29970,29970,29970,29970,29968,29976,29977,29977,29978,29979,29980,29980,29981,29982,29981]} 1. e4 {[%emt 0:00:03]} e5 {[%emt 0:00:09]} 2. Nf3 {[%emt 0:00:05]} Nc6 {[%emt 0:00:10]} 3. Bb5 {[%emt 0:00:05]} a6 {[%emt 0:00:12]} 4. Ba4 {[%emt 0:00:05]} Nf6 {[%emt 0:00:17]} 5. d3 {[%emt 0:00:06]} d6 {[%emt 0:00:46]} 6. c3 {[%emt 0:00:16]} Be7 {[%emt 0:01:12]} 7. O-O {[%emt 0:00:55]} O-O {[%emt 0:00:14]} 8. Re1 {[%emt 0:00:06]} Re8 {[%emt 0:03:10]} 9. Nbd2 {[%emt 0:04:18]} Bf8 {[%emt 0:01:19]} 10. Nf1 {[%emt 0:00:33]} h6 {[%emt 0:00:42]} 11. Ng3 {[%emt 0:02:21]} b5 {[%emt 0:01:16]} 12. Bb3 {[%emt 0:01:04]} a5 {[%emt 0:00:25]} 13. d4 {[%emt 0:01:45]} a4 {[%emt 0:07:50]} 14. Bc2 {[%emt 0:00:53]} Bg4 {[%emt 0:03:56]} 15. Bd3 {[%emt 0:20:51]} Rb8 {[%emt 0:17:22]} 16. Qe2 {[%emt 0:01:41]} b4 {[%emt 0:29:35]} 17. Bb5 {[%emt 0:13:51]} Bd7 {[%emt 0:01:20]} 18. d5 {[%emt 0:01:57]} Nd4 {[%emt 0:07:22]} 19. Nxd4 {[%emt 0:13:42]} exd4 {[%emt 0:00:10]} 20. Bxd7 {[%emt 0:00:04]} Qxd7 {[%emt 0:00:17]} 21. cxd4 {[%emt 0:00:56]} Nxd5 {[%emt 0:01:54]} 22. Bd2 {[%emt 0:02:37]} Nf6 {[%emt 0:04:58]} 23. Qf3 {[%emt 0:05:40]} Qg4 {[%emt 0:07:09]} 24. Qxg4 {[%emt 0:01:05]} Nxg4 {[%emt 0:00:04]} 25. f3 {[%emt 0:00:23]} Nf6 {[%emt 0:00:06]} 26. d5 {[%emt 0:00:03]} g6 {[%emt 0:03:30]} 27. Rac1 {[%emt 0:03:35]} Nd7 {[%emt 0:00:40]} 28. Rxc7 {[%emt 0:02:02]} Nc5 {[%emt 0:02:07]} 29. Rd1 {[%emt 0:12:26]} Bg7 {[%emt 0:04:07]} 30. Bf4 {[%emt 0:02:09]} Bxb2 {[%emt 0:01:17]} 31. Bxd6 {[%emt 0:00:23]} b3 {[%emt 0:00:42]} 32. Rxc5 {[%emt 0:03:50]} bxa2 {[%emt 0:00:40]} 33. Bxb8 {[%emt 0:00:11]} Bd4+ {[%emt 0:00:25]} 34. Kf1 {[%emt 0:00:06]} Bxc5 {[%emt 0:00:13]} 35. Be5 {[%emt 0:04:20]} Rxe5 {[%emt 0:00:42]} 36. Ra1 {[%emt 0:00:10]} a3 {[%emt 0:00:47]} 37. Rxa2 {[%emt 0:00:24]} Re8 {[%emt 0:00:37]} 38. Ke2 {[%emt 0:00:01]} Bd6 {[%emt 0:01:14]} 39. Kd3 {[%emt 0:00:53]} Rb8 {[%emt 0:00:21]} 40. Nf1 {[%emt 0:03:16]} f5 {[%emt 0:00:41]} 41. Nd2 {[%emt 0:31:10]} Kg7 {[%emt 0:18:08]} 42. Kd4 {[%emt 0:16:34]} fxe4 {[%emt 0:06:01]} 43. fxe4 {[%emt 0:00:00]} Rb2 {[%emt 0:03:14]} 44. Rxb2 {[%emt 0:00:00]} axb2 {[%emt 0:00:01]} 45. Kc3 {[%emt 0:00:00]} (45. e5 $16 Bc7 46. d6) 45... Bf4 $11 {[%emt 0:03:04]} 46. Nb1 {[%emt 0:00:00]} Bxh2 {[%emt 0:01:21]} (46... Be5+ {feels hotter.} 47. Kc2 Bxh2 48. Nd2 h5) 47. Kxb2 {[%emt 0:00:00]} h5 {[%emt 0:00:16]} 48. Nd2 {[%emt 0:00:00]} g5 {[%emt 0:00:29]} 49. Nf3 {[%emt 0:00:00]} Bf4 {[%emt 0:00:10]} 50. Kc3 {[%emt 0:00:00]} g4 {[%emt 0:00:37]} 51. Nh4 {[%emt 0:00:00]} Kf6 {[%emt 0:00:52]} 52. Nf5 $1 {[%emt 0:00:00]} Ke5 {[%emt 0:01:44]} 53. Kd3 {[%emt 0:00:00]} Bg5 {[%emt 0:00:21]} 54. g3 {[%emt 0:00:00]} Bd8 {[%emt 0:00:39]} 55. Ne3 {[%emt 0:00:00]} (55. d6 {is interesting.} Bf6 56. d7 Bd8 57. Ke2) 55... Kd6 {[%emt 0:00:28]} 56. Nf5+ {[%emt 0:00:00]} Ke5 {[%emt 0:00:07]} 57. Ne3 {[%emt 0:00:00]} (57. d6 {is more complex.} Bf6 58. d7 Bd8 59. Ke2) 57... Kd6 $1 {[%emt 0:00:13]} 58. Ng2 {[%emt 0:00:00]} Bf6 {[%emt 0:00:34]} 59. Nf4 {[%emt 0:00:00]} h4 {[%emt 0:00:12]} 60. gxh4 {[%emt 0:00:00]} Bxh4 {[%emt 0:00:12]} 61. Ng2 {[%emt 0:00:00]} Bf2 {[%emt 0:01:25]} 62. Ne3 {[%emt 0:00:00]} g3 {[%emt 0:00:06]} 63. Ke2 {[%emt 0:00:00]} Ke5 {[%emt 0:01:03]} 64. Kf3 {[%emt 0:00:00]} Be1 $1 {[%emt 0:00:24]} ({And not} 64... Bxe3 65. Kxe3 g2 66. Kf2 g1=R 67. Kxg1 Kf6 68. d6 Ke6 69. e5) 65. Ng4+ {[%emt 0:00:00]} Kd4 {[%emt 0:00:37]} 66. Ne3 {[%emt 0:00:00]} Ke5 {[%emt 0:00:07]} 67. Ng2 {[%emt 0:00:00]} Bd2 {[%emt 0:00:34]} 68. Nh4 {[%emt 0:00:00]} Be1 $2 {[%emt 0:00:52][%mdl 8192]} (68... Bg5 $11 69. Ng2 (69. Kxg3 Kxe4 70. Ng6 Kxd5 $11) 69... Be7) 69. Ng6+ {[%emt 0:00:00]} Kd6 {[%emt 0:00:39] [#]} 70. Nf4 $1 {[%emt 0:00:00]} Bd2 {[%emt 0:00:23]} 71. Nd3 {[%emt 0:00:00]} ({Weaker is} 71. Kxg3 Ke5 $11) 71... Bc3 {[%emt 0:00:37]} 72. Kxg3 {[%emt 0:00:00]} Bd4 {[%emt 0:00:30]} 73. Kf3 {[%emt 0:00:00]} Bg7 {[%emt 0:00:09]} 74. Ke3 {[%emt 0:00:00]} Bf6 {[%emt 0:00:19]} 75. Kd2 {[%emt 0:00:00]} Bd4 {[%emt 0:00:10]} 76. Kc2 {[%emt 0:00:00]} Bg7 {[%emt 0:00:37]} 77. Kb3 {[%emt 0:00:00]} Bf6 {[%emt 0:00:22]} 78. Kc4 {[%emt 0:00:00]} Bg7 {[%emt 0:00:21]} 79. e5+ {[%emt 0:00:00]} Kd7 {[%emt 0:00:54]} 80. Nc5+ {[%emt 0:00:00]} 1-0

[Event "45th FIDE Olympiad 2024"]
[Site "Budapest"]
[Date "2024.09.15"]
[Round "5.26"]
[White "Kanegeni, Matthew Kamau"]
[Black "Mafnas, Peter"]
[Result "1-0"]
[ECO "B14"]
[WhiteElo "1976"]
[BlackElo "1886"]
[PlyCount "107"]
[EventDate "2024.09.05"]
[EventType "team-tourn"]
[EventCountry "HUN"]
[WhiteTeam "Kenya"]
[BlackTeam "Guam"]
[WhiteTeamCountry "KEN"]
[BlackTeamCountry "GMA"]
[TimeControl "40/5400+30:1800+30"]

1. e4 c6 2. d4 d5 3. exd5 cxd5 4. c4 Nf6 5. Nc3 e6 6. c5 Nc6 7. Nf3 Be7 8. Bb5 O-O 9. O-O Nd7 10. Bf4 a6 11. Qa4 Na7 12. Bd3 Nc6 13. Rfe1 Bf6 14. Rad1 g6 15. Bd6 Be7 16. Bxe7 Nxe7 17. b4 Nf6 18. Ne5 Bd7 19. Qc2 Nc6 20. Nxc6 bxc6 21. a4 Qc7 22. g3 Ng4 23. Qe2 f5 24. f3 Nh6 25. Bxa6 Nf7 26. Bd3 Ng5 27. Kg2 Nf7 28. b5 Qa5 29. Qb2 Rfe8 30. bxc6 Bxc6 31. Bb5 Rab8 32. Qd2 Qc7 33. Qf4 Qd7 34. h4 Kg7 35. Rb1 Rbc8 36. Bxc6 Rxc6 37. Rb5 e5 38. dxe5 d4 39. Na2 Rce6 40. Nb4 Nxe5 41. Rxe5 Rxe5 42. c6 Re2+ 43. Kh3 Qe6 44. Qxd4+ Kh6 45. Qf4+ Kg7 46. Rb7+ Kh8 47. Qd4+ Qe5 48. Qxe5+ R2xe5 49. c7 Rc8 50. Nc6 Ree8 51. a5 Ra8 52. Rb8 Rc8 53. Rxa8 Rxa8 54. Nb8 1-0

[Event "45th FIDE Olympiad 2024"]
[Site "Budapest"]
[Date "2024.09.15"]
[Round "5.27"]
[White "Flores, Diego"]
[Black "Dominguez Perez, Leinier"]
[Result "1-0"]
[ECO "D30"]
[WhiteElo "2546"]
[BlackElo "2748"]
[Annotator "TA"]
[PlyCount "69"]
[EventDate "2024.09.05"]
[EventType "team-tourn"]
[EventCountry "HUN"]
[SourceTitle "playchess.com"]
[Source "ChessBase"]
[SourceQuality "1"]
[WhiteTeam "Argentina"]
[BlackTeam "United States of America"]
[WhiteTeamCountry "ARG"]
[TimeControl "40/5400+30:1800+30"]

{[%evp 10,69,7,0,0,-3,0,0,9,0,0,0,0,0,13,-45,-6,-14,20,10,48,46,33,60,57,66,43,68,50,58,87,47,52,35,50,62,254,262,293,179,183,181,178,193,169,127,306,299,307,305,441,430,427,430,433,425,429,424,1070,162,2201,2126]} 1. c4 {[%emt 0:00:13]} e6 {[%emt 0:00:43]} 2. Nf3 {[%emt 0:01:44]} d5 {[%emt 0:00:21]} 3. d4 {[%emt 0:01:52]} Nf6 {[%emt 0:00:38]} 4. Bg5 {[%emt 0:01:16]} dxc4 {[%emt 0:07:37]} 5. Qa4+ {[%emt 0:10:03]} Nbd7 {[%emt 0:00:53]} 6. e4 {[%emt 0:07:23]} Be7 {[%emt 0:05:23]} 7. Nc3 {[%emt 0:06:13]} c5 {[%emt 0:24:37]} 8. dxc5 {[%emt 0:14:32]} O-O {[%emt 0:00:50] The position is equal.} 9. Qxc4 {[%emt 0:11:00]} h6 {[%emt 0:00:43]} 10. Bh4 {[%emt 0:04:41]} b5 {[%emt 0:23:07]} 11. cxb6 {[%emt 0:12:44]} Qxb6 {[%emt 0:02:11][%cal Og7g5]} 12. Be2 {[%emt 0:02:19]} (12. Qb5 $1 $11 Bb4 13. Nd2) 12... Qxb2 {[%emt 0:17:34]} (12... Bb7 {simplifies} 13. e5 Nd5 14. Bxe7 Nxe7 15. Qd4 Qxd4 16. Nxd4 Bxg2 17. Rg1 Bb7) 13. O-O {[%emt 0:14:14] Black must now prevent Rab1.} Nb6 {[%emt 0:03:07]} 14. Qd4 {[%emt 0:01:19]} Rd8 {[%emt 0:05:30] [#] Dodges Nd5} (14... Qa3 {simplifies} 15. Nb5 Qa5 16. e5 Nfd5) 15. Nd5 $1 {[%emt 0:01:03]} Qxd4 {[%emt 0:00:45]} 16. Nxe7+ {[%emt 0:00:06]} Kf8 {[%emt 0:00:07]} 17. Nxd4 {[%emt 0:00:11]} Rxd4 {[%emt 0:00:02]} 18. Nxc8 {[%emt 0:00:58]} Rxc8 {[%emt 0:00:02]} 19. f3 {[%emt 0:00:18]} Rc2 {[%emt 0:03:07]} 20. Rf2 {[%emt 0:00:16]} g5 {[%emt 0:00:52]} 21. Bf1 {[%emt 0:04:42] Strongly threatening Bxg5.} Rc5 {[%emt 0:02:10]} 22. Bg3 {[%emt 0:00:13][%cal Oa2a4]} Nbd7 $2 {[%emt 0:00:39]} ({Black should try} 22... Nh5 $1 $14) 23. Rb2 $18 {[%emt 0:00:40]} Rc8 {[%emt 0:00:23]} 24. Bf2 {[%emt 0:00:39]} Ra4 {[%emt 0:00:13]} 25. Bb5 $36 {[%emt 0:00:11][%mdl 2048] White is really pushing.} Ra3 {[%emt 0:00:29]} 26. Be1 {[%emt 0:00:30]} a5 {[%emt 0:00:16] Prevents Bb4+} 27. Rd1 {[%emt 0:01:40]} Ne5 {[%emt 0:00:34]} (27... Nb6 $16 {might work better.}) 28. Bg3 {[%emt 0:00:40]} Rc5 {[%emt 0:00:06]} 29. Bf2 {[%emt 0:00:14]} Rc8 {[%emt 0:00:47] [#]} (29... Rc7 $142 30. Bb6 Rc8) 30. Bd4 $1 {[%emt 0:01:43] A strong pair of Bishops.} Nfd7 {[%emt 0:00:17]} 31. Bxd7 {[%emt 0:00:25]} Nxd7 {[%emt 0:00:02]} 32. Rb7 {[%emt 0:00:04] Inhibits Rc7.} Rxa2 {[%emt 0:01:54]} 33. Rxd7 {[%emt 0:00:14]} Rcc2 {[%emt 0:00:01]} (33... Kg8 $142 34. Be5 Rac2) 34. Rd8+ {[%emt 0:00:16]} Ke7 {[%emt 0:00:02]} 35. Be5 {[%emt 0:00:06] Weighted Error Value: White=0.10 (very precise) /Black=0.33.  Loses game:     	---       	Black=2      Mistake:       	White=1     	Black=2      Inaccurate:     	White=2     	Black=5      OK:         	White=16    	Black=9      Best:        	White=6     	---        Strong:       	White=1     	---        Brilliant:      	White=1     	---} 1-0

[Event "45th FIDE Olympiad 2024"]
[Site "Budapest"]
[Date "2024.09.15"]
[Round "5.27"]
[White "Combs, Daniel"]
[Black "Wanasunia, Elvis Likoko"]
[Result "0-1"]
[ECO "B40"]
[WhiteElo "1688"]
[BlackElo "1942"]
[PlyCount "54"]
[EventDate "2024.09.05"]
[EventType "team-tourn"]
[EventCountry "HUN"]
[WhiteTeam "Guam"]
[BlackTeam "Kenya"]
[WhiteTeamCountry "GMA"]
[BlackTeamCountry "KEN"]
[TimeControl "40/5400+30:1800+30"]

1. e4 c5 2. Nf3 e6 3. d4 cxd4 4. Nxd4 a6 5. Nc3 Nf6 6. Bc4 Qc7 7. Bb3 Bb4 8. Nde2 Nc6 9. f3 b5 10. Be3 Bb7 11. O-O O-O 12. Qd2 Rad8 13. Rad1 d5 14. Qc1 dxe4 15. Nxe4 Nxe4 16. fxe4 Na5 17. Ng3 Nxb3 18. axb3 Bd6 19. Bf2 Bf4 20. Qb1 h5 21. Nxh5 Bxh2+ 22. Kh1 Qe5 23. Nxg7 Kxg7 24. Bd4 Rxd4 25. Rxd4 Rh8 26. Qd1 Bf4+ 27. Kg1 Be3+ {0-} 0-1

[Event "45th FIDE Olympiad 2024"]
[Site "Budapest"]
[Date "2024.09.15"]
[Round "5.28"]
[White "Aronian, Levon"]
[Black "Sosa, Tomas"]
[Result "1-0"]
[ECO "C56"]
[WhiteElo "2729"]
[BlackElo "2515"]
[Annotator "TA"]
[PlyCount "135"]
[EventDate "2024.09.05"]
[EventType "team-tourn"]
[EventCountry "HUN"]
[SourceTitle "playchess.com"]
[Source "ChessBase"]
[SourceQuality "1"]
[WhiteTeam "United States of America"]
[BlackTeam "Argentina"]
[BlackTeamCountry "ARG"]
[TimeControl "40/5400+30:1800+30"]

{[%evp 54,135,165,170,179,177,178,183,171,174,221,222,221,222,205,218,258,277,358,363,363,360,513,501,503,509,489,489,474,371,480,487,479,419,468,414,451,442,473,280,789,789,776,757,1256,1172,977,933,2055,1630,5522,4956,29968,29969,29969,29970,29970,29971,29971,29970,29973,29973,29974,29975,29975,29976,29978,29979,29979,29980,29980,29981,29981,29982,29982,29983,29983,29984,29983,29983,29983,29984,29987,29988]} 1. e4 {[%emt 0:00:03]} e5 {[%emt 0:00:07]} 2. Nf3 {[%emt 0:00:06]} Nc6 {[%emt 0:00:05]} 3. Bc4 {[%emt 0:00:06]} d6 {[%emt 0:00:07]} 4. d4 {[%emt 0:02:23]} Nf6 {[%emt 0:00:11]} 5. dxe5 {[%emt 0:05:53]} dxe5 {[%emt 0:01:39]} 6. Qxd8+ {[%emt 0:00:28] C56: Two Knights: 4 d4 exd4 5 0-0 Nxe4.} Nxd8 {[%emt 0:00:07]} 7. Nc3 {[%emt 0:00:48]} Bd6 {[%emt 0:11:39]} 8. Bg5 {[%emt 0:01:58]} c6 {[%emt 0:06:01]} 9. a4 $146 {[%emt 0:14:52]} ({Predecessor:} 9. O-O-O Bc7 10. Bh4 b5 11. Bb3 Nb7 12. Bg3 Nd7 13. Ne2 Nbc5 14. Ned4 f6 15. Nxc6 Nxb3+ 16. axb3 {1-0 Aronian,L (2782)-Artemiev,V (2699) Meltwater Tour Final rapid 2021 (2.4)}) 9... Ne6 {[%emt 0:07:53]} 10. O-O-O {[%emt 0:16:39]} Bc7 {[%emt 0:05:20]} 11. Bh4 {[%emt 0:00:20]} Nh5 {[%emt 0:06:05]} 12. Ne2 {[%emt 0:06:49]} f6 {[%emt 0:04:05]} 13. Nd2 {[%emt 0:12:56]} Nc5 {[%emt 0:07:33]} 14. f3 {[%emt 0:04:15]} g5 {[%emt 0:13:37]} 15. Bf2 {[%emt 0:02:22]} Nxa4 {[%emt 0:00:09]} 16. g4 {[%emt 0:00:10]} Nf4 {[%emt 0:00:23]} 17. Nxf4 {[%emt 0:01:22]} gxf4 {[%emt 0:00:10]} 18. Bb3 {[%emt 0:01:40]} Nb6 {[%emt 0:01:33]} 19. Bh4 {[%emt 0:01:42]} Rf8 {[%emt 0:08:11]} 20. g5 {[%emt 0:00:57]} fxg5 {[%emt 0:09:38]} 21. Bxg5 {[%emt 0:00:05]} Nd7 {[%emt 0:00:39]} 22. Nc4 {[%emt 0:02:23]} Nc5 {[%emt 0:02:00]} 23. Nd6+ {[%emt 0:00:59]} Bxd6 {[%emt 0:00:12]} 24. Rxd6 {[%emt 0:00:04]} Nxb3+ {[%emt 0:00:34]} 25. cxb3 {[%emt 0:00:01]} Kf7 {[%emt 0:03:37]} 26. Rh6 {[%emt 0:01:55]} Rg8 {[%emt 0:01:16]} 27. h4 {[%emt 0:10:21]} Rg6 {[%emt 0:06:59]} 28. Rxh7+ {[%emt 0:00:36]} Rg7 {[%emt 0:00:05]} 29. Rh8 {[%emt 0:02:45]} Rg8 {[%emt 0:00:15] [#]} 30. Rxg8 $1 {[%emt 0:03:38]} Kxg8 {[%emt 0:00:02]} 31. Bf6 {[%emt 0:00:11]} Be6 {[%emt 0:00:04] [#]} (31... b6 {was necessary.} 32. Rg1+ (32. Bxe5 Ba6 $18) 32... Kh7 33. Rg7+ (33. Bxe5 Ba6 $18) 33... Kh6) 32. Rg1+ $1 $18 {[%emt 0:01:14]} Kh7 {[%emt 0:00:48]} 33. Rg7+ {[%emt 0:00:49]} Kh6 {[%emt 0:00:05]} 34. Rxb7 {[%emt 0:00:06]} Rg8 {[%emt 0:02:15]} 35. Bxe5 {[%emt 0:00:21]} Rg1+ {[%emt 0:00:55]} 36. Kd2 {[%emt 0:00:13]} Rg2+ {[%emt 0:00:24]} 37. Ke1 {[%emt 0:00:09]} Rc2 {[%emt 0:01:15]} (37... a5 $142 38. Bxf4+ Kh5 39. Rh7+ Kg6 40. Rh6+ Kf7) 38. Bxf4+ $18 {[%emt 0:00:57]} Kh5 {[%emt 0:00:09]} 39. Rh7+ {[%emt 0:02:15]} Kg6 {[%emt 0:00:04]} 40. Rh6+ {[%emt 0:00:14]} (40. Rxa7 Rxb2 41. Ra5 Rb1+ 42. Kf2 Rh1 43. Rg5+ Kh7 44. Rh5+ Kg7) 40... Kf7 {[%emt 0:00:04]} 41. Be5 {[%emt 0:30:31]} Bxb3 {[%emt 0:32:31]} 42. h5 {[%emt 0:01:05]} Rc5 {[%emt 0:00:00]} 43. Bd4 {[%emt 0:00:00]} Rc2 {[%emt 0:00:00]} 44. Rf6+ {[%emt 0:00:00]} (44. Bxa7 Ba4 45. Bd4 Rh2) 44... Kg8 {[%emt 0:00:00]} 45. h6 {[%emt 0:00:00]} ({But not} 45. Bxa7 Rxb2 46. h6 (46. Rxc6 Ba2 $18) 46... Ra2 $18) 45... Kh7 {[%emt 0:00:00]} 46. Rd6 {[%emt 0:00:00]} (46. Be3 $142 {Black must now prevent Rd6.} Rxb2 47. Rd6 (47. Bxa7 c5 $18) (47. Rxc6 Rc2 $18) 47... Rb1+ 48. Kf2) 46... c5 $2 {[%emt 0:00:00]} (46... Bc4 47. Rxc6 Re2+ 48. Kd1 Bb5) 47. Be3 $18 {[%emt 0:00:00]} Rh2 {[%emt 0:00:00]} 48. Rd7+ {[%emt 0:00:00]} Kg6 {[%emt 0:00:00]} 49. Rg7+ {[%emt 0:00:00]} Kf6 {[%emt 0:00:00]} 50. Rxa7 {[%emt 0:00:00]} Bc4 {[%emt 0:00:00]} 51. h7 {[%emt 0:00:00]} Bf7 {[%emt 0:00:00]} 52. Ra6+ {[%emt 0:00:00]} Kg7 {[%emt 0:00:00]} 53. Rh6 {[%emt 0:00:00]} Rxh6 {[%emt 0:00:00]} 54. Bxh6+ {[%emt 0:00:00]} Kxh7 {[%emt 0:00:00]} 55. Be3 {[%emt 0:00:00]} c4 {[%emt 0:00:00]} 56. Kf2 {[%emt 0:00:00]} Bh5 {[%emt 0:00:00]} 57. Kg3 {[%emt 0:00:00]} Kg7 {[%emt 0:00:00]} 58. f4 {[%emt 0:00:00]} Kf6 {[%emt 0:00:00]} 59. Bd4+ {[%emt 0:00:00]} Ke6 {[%emt 0:00:00]} 60. f5+ {[%emt 0:00:00]} Kd6 {[%emt 0:00:00]} 61. Kf4 {[%emt 0:00:00]} Bd1 {[%emt 0:00:00]} 62. Bc3 {[%emt 0:00:00]} Bc2 {[%emt 0:00:00]} 63. e5+ {[%emt 0:00:00]} Kd5 {[%emt 0:00:00]} 64. Kg5 {[%emt 0:00:00]} Bd1 {[%emt 0:00:35]} 65. e6 {[%emt 0:00:00]} Kd6 {[%emt 0:00:40]} 66. Kf6 {[%emt 0:00:00]} Bg4 {[%emt 0:00:22]} 67. Bb4+ {[%emt 0:00:00]} Kc6 {[%emt 0:00:18]} 68. Ke5 {[%emt 0:00:00]} 1-0

[Event "45th FIDE Olympiad 2024"]
[Site "Budapest"]
[Date "2024.09.15"]
[Round "5.28"]
[White "Mutuge, Ian"]
[Black "Doria, Daniel"]
[Result "1-0"]
[ECO "C78"]
[WhiteElo "1938"]
[BlackElo "1745"]
[PlyCount "83"]
[EventDate "2024.09.05"]
[EventType "team-tourn"]
[EventCountry "HUN"]
[WhiteTeam "Kenya"]
[BlackTeam "Guam"]
[WhiteTeamCountry "KEN"]
[BlackTeamCountry "GMA"]
[TimeControl "40/5400+30:1800+30"]

1. e4 e5 2. Nf3 Nc6 3. Bb5 a6 4. Ba4 Nf6 5. O-O b5 6. Bb3 Bc5 7. c3 d6 8. d4 exd4 9. cxd4 Bb6 10. h3 O-O 11. Nc3 Bb7 12. e5 dxe5 13. dxe5 Nd7 14. e6 Nde5 15. Nxe5 Nxe5 16. Qxd8 Rfxd8 17. Bf4 Nc4 18. exf7+ Kxf7 19. a4 Kf8 20. Bxc4 bxc4 21. a5 Bc5 22. Ra4 Bd6 23. Rxc4 Rd7 24. Rd1 Rad8 25. Bg5 Re8 26. Bf4 Red8 27. Bxd6+ cxd6 28. Nd5 Rf7 29. Nb6 d5 30. Rcd4 Rf5 31. Rc1 Rf6 32. Rc7 Bc6 33. Ra7 Rf7 34. Rxf7+ Kxf7 35. Kf1 Re8 36. Nxd5 Re5 37. Nb4 Bb5+ 38. Kg1 Re2 39. Nd3 Kf6 40. b4 Rc2 41. Nc5 Rc4 42. Rxc4 1-0

[Event "45th FIDE Olympiad 2024"]
[Site "Budapest"]
[Date "2024.09.15"]
[Round "5.29"]
[White "Abdusattorov, Nodirbek"]
[Black "Schitco, Ivan"]
[Result "1-0"]
[ECO "D02"]
[WhiteElo "2766"]
[BlackElo "2527"]
[Annotator "TA"]
[PlyCount "115"]
[EventDate "2024.09.05"]
[EventType "team-tourn"]
[EventCountry "HUN"]
[SourceTitle "playchess.com"]
[Source "ChessBase"]
[SourceQuality "1"]
[WhiteTeam "Uzbekistan"]
[BlackTeam "Moldova"]
[WhiteTeamCountry "UZB"]
[BlackTeamCountry "MDA"]
[TimeControl "40/5400+30:1800+30"]

{[%evp 11,115,17,22,33,44,24,25,30,27,8,50,44,43,44,35,27,45,31,41,36,38,33,41,36,47,42,59,52,53,46,43,44,56,-4,0,0,0,0,0,0,0,0,0,0,0,0,0,-9,-9,-49,-43,-49,-37,-63,-11,-10,-22,-18,-12,-9,-11,-13,0,0,11,17,13,15,74,71,72,72,119,119,567,551,656,675,657,636,524,450,1672,962,1695,1542,5617,5513,5056,3678,1374,1011,29971,29971,29973,29974,29974,29975,29976,29977,29976,29976,29974,29975,29976,29976]} 1. d4 {[%emt 0:00:19]} d5 {[%emt 0:00:10]} 2. Nf3 {[%emt 0:00:09]} Nf6 {[%emt 0:00:14]} 3. Bf4 {[%emt 0:00:05]} c5 {[%emt 0:00:47]} 4. e3 {[%emt 0:00:07]} Nc6 {[%emt 0:00:33]} 5. Nbd2 {[%emt 0:00:06]} Bg4 {[%emt 0:01:33]} 6. c3 {[%emt 0:00:10]} e6 {[%emt 0:05:08]} 7. Qb3 {[%emt 0:00:39]} Qb6 {[%emt 0:08:54]} 8. h3 {[%emt 0:02:48]} Bf5 {[%emt 0:05:39]} 9. g4 {[%emt 0:05:03] White has an edge.} Bg6 {[%emt 0:02:00]} 10. Nh4 {[%emt 0:04:11]} Nd7 {[%emt 0:03:00]} 11. Nxg6 {[%emt 0:02:51]} hxg6 {[%emt 0:01:09]} 12. h4 {[%emt 0:01:20]} Be7 {[%emt 0:09:43][%cal Og6g5]} 13. Nf3 {[%emt 0:03:44]} Rc8 {[%emt 0:07:57]} 14. g5 {[%emt 0:21:29]} cxd4 {[%emt 0:03:55]} 15. exd4 {[%emt 0:00:52]} Na5 {[%emt 0:01:06]} 16. Qxb6 {[%emt 0:07:35]} Nxb6 {[%emt 0:01:10]} 17. Bd3 {[%emt 0:04:29]} Nac4 {[%emt 0:05:39]} 18. b3 {[%emt 0:00:10]} Bd6 {[%emt 0:07:07]} 19. Bc1 {[%emt 0:01:03]} Na5 {[%emt 0:00:55]} 20. Ke2 {[%emt 0:01:09]} Nd7 {[%emt 0:01:51]} 21. Bd2 {[%emt 0:05:26]} a6 {[%emt 0:02:43] [#]} 22. h5 {[%emt 0:02:35]} gxh5 {[%emt 0:08:11]} 23. g6 {[%emt 0:00:08]} f6 {[%emt 0:00:12] Dodges Ng5} 24. Rh3 {[%emt 0:02:51]} Nf8 {[%emt 0:05:46]} 25. Rah1 {[%emt 0:01:31]} Nc6 {[%emt 0:00:46]} 26. Rxh5 {[%emt 0:04:34]} Rxh5 {[%emt 0:00:01]} 27. Rxh5 {[%emt 0:00:06]} Ne7 {[%emt 0:00:32]} 28. Nh4 {[%emt 0:00:11]} f5 {[%emt 0:02:12]} 29. Rg5 {[%emt 0:05:03]} Nd7 {[%emt 0:05:20]} 30. Rg1 {[%emt 0:02:44]} Nf6 {[%emt 0:01:10]} 31. c4 {[%emt 0:00:41]} Kd7 {[%emt 0:02:11]} 32. Nf3 {[%emt 0:02:42]} Rh8 {[%emt 0:01:15]} (32... Ne4 $15) 33. c5 $11 {[%emt 0:04:58]} Bc7 {[%emt 0:00:12]} 34. b4 {[%emt 0:00:03]} Ne4 {[%emt 0:02:25]} 35. b5 {[%emt 0:02:26]} axb5 {[%emt 0:01:45]} 36. Bxb5+ {[%emt 0:00:02]} Nc6 {[%emt 0:00:54]} 37. a4 {[%emt 0:00:37]} Nxd2 {[%emt 0:02:28]} 38. Kxd2 {[%emt 0:00:27]} Bf4+ {[%emt 0:00:34]} 39. Ke2 {[%emt 0:01:52]} Kc7 {[%emt 0:02:13]} (39... Rh6 $11 {keeps the balance.}) 40. Bxc6 $16 {[%emt 0:00:13]} bxc6 {[%emt 0:00:33][%mdl 4096] Endgame. KRB-KRN} 41. a5 {[%emt 0:32:10]} Rb8 {[%emt 0:10:07] [#]} ({Better is} 41... Ra8) 42. Ra1 $1 {[%emt 0:00:00]} Kb7 $2 {[%emt 0:12:09][%mdl 8192] [#] Black cannot hold the game after this.} (42... Rb2+ $16 {is tougher.} 43. Kf1 Rb8) 43. Rb1+ $1 $18 {[%emt 0:00:00]} Kc7 {[%emt 0:00:05]} 44. Rxb8 {[%emt 0:00:00]} Kxb8 {[%emt 0:00:02] KB-KN} 45. Ne1 {[%emt 0:00:00]} Kb7 {[%emt 0:02:14]} 46. Nd3 {[%emt 0:00:00]} Bg5 {[%emt 0:00:04]} (46... Bc7 $142 47. Kf3 Bxa5) 47. Nb4 {[%emt 0:00:00] Strongly threatening Kf3.} Bf6 {[%emt 0:04:35]} 48. a6+ {[%emt 0:00:00]} Kc7 {[%emt 0:02:32]} 49. a7 {[%emt 0:00:00]} Kb7 {[%emt 0:00:03] [#]} 50. Nxc6 $1 {[%emt 0:00:00][%mdl 512]} Ka8 {[%emt 0:00:25]} (50... Bg5 51. Kd3) 51. Kd3 {[%emt 0:00:00]} Kb7 {[%emt 0:00:04] [#]} 52. f3 $1 {[%emt 0:00:00] White mates.} Ka8 {[%emt 0:00:07]} (52... Bh4 53. Kc3) 53. Kc3 {[%emt 0:00:00]} Kb7 {[%emt 0:00:03] [#]} 54. Kb4 $1 {[%emt 0:00:00]} Ka8 {[%emt 0:02:45]} (54... Bg5 55. Kb5) 55. Kb5 {[%emt 0:00:00]} Kb7 {[%emt 0:00:03] [#]} 56. a8=Q+ $1 {[%emt 0:00:00][%mdl 512]} Kxa8 {[%emt 0:00:03]} 57. Kb6 {[%emt 0:00:00]} f4 {[%emt 0:00:03]} 58. Kc7 {[%emt 0:00:00] Weighted Error Value: White=0.05 (flawless) /Black=0.33.  Loses game:     	---       	Black=1      Mistake:       	White=1     	Black=3      Inaccurate:     	White=2     	Black=2      OK:         	White=20    	Black=14     Best:        	White=2     	---        Strong:       	White=2     	---} 1-0